Department family,Entity,Date,Expense Type,Expense area,Supplier,Transaction number,Amount
Department for Culture Media and Sport,Department for Culture Media and Sport,01/11/2010,Learning & Development,Central Learning & Development,Adsum Consulting Ltd,30020191,450
Department for Culture Media and Sport,Department for Culture Media and Sport,01/11/2010,Grant-in-Aid (DCMS NDPBs),GIA Arts bodies,Arts Council of England,30020146,"25,770,983.00"
Department for Culture Media and Sport,Department for Culture Media and Sport,01/11/2010,Grant-in-Aid (DCMS NDPBs),GIA Libraries bodies,British Library,30020100,"10,427,930.00"
Department for Culture Media and Sport,Department for Culture Media and Sport,01/11/2010,Grant-in-Aid (DCMS NDPBs),GIA Museums & Galleries,British Museum,30020186,"3,434,762.00"
Department for Culture Media and Sport,Department for Culture Media and Sport,01/11/2010,Grant-in-Aid (DCMS NDPBs),GIA Architecture+Heritage,Comm.for Architecture & the Built Envir.,30020140,"1,926,761.00"
Department for Culture Media and Sport,Department for Culture Media and Sport,01/11/2010,Grant-in-Aid (DCMS NDPBs),GIA Architecture+Heritage,English Heritage,30020049,"6,000,000.00"
Department for Culture Media and Sport,Department for Culture Media and Sport,01/11/2010,Grant-in-Aid (DCMS NDPBs),GIA Film Council,UK Film Council,30020098,"2,604,260.00"
Department for Culture Media and Sport,Department for Culture Media and Sport,01/11/2010,Grant-in-Aid (DCMS NDPBs),GIA Sports bodies,Football Licencing Authority,30020101,"103,185.00"
Department for Culture Media and Sport,Department for Culture Media and Sport,01/11/2010,Grant-in-Aid (DCMS NDPBs),GIA Museums & Galleries,Geffrye Museum,30020047,"144,000.00"
Department for Culture Media and Sport,Department for Culture Media and Sport,01/11/2010,Grant-in-Aid (DCMS NDPBs),GIA Museums & Galleries,Horniman Museum,30020093,"399,500.00"
Department for Culture Media and Sport,Department for Culture Media and Sport,01/11/2010,Grant-in-Aid (DCMS NDPBs),GIA Museums & Galleries,Imperial War Museum,30020177,"1,888,715.00"
Department for Culture Media and Sport,Department for Culture Media and Sport,01/11/2010,Grant-in-Aid (DCMS NDPBs),GIA Museums & Galleries,Museum of Science & Ind in Manchester,30020097,"317,306.00"
Department for Culture Media and Sport,Department for Culture Media and Sport,01/11/2010,Grant-in-Aid (DCMS NDPBs),GIA Museums & Galleries,National Gallery,30020145,"2,419,759.00"
Department for Culture Media and Sport,Department for Culture Media and Sport,01/11/2010,Grant-in-Aid (DCMS NDPBs),GIA Museums & Galleries,National Maritime Museum,30020048,"1,559,000.00"
Department for Culture Media and Sport,Department for Culture Media and Sport,01/11/2010,Grant-in-Aid (DCMS NDPBs),GIA Museums & Galleries,National Museum of Science & Industry,30020143,"230,438.00"
Department for Culture Media and Sport,Department for Culture Media and Sport,01/11/2010,Grant-in-Aid (DCMS NDPBs),GIA Museums & Galleries,National Museum of Science & Industry,30020144,"3,136,000.00"
Department for Culture Media and Sport,Department for Culture Media and Sport,01/11/2010,Grant-in-Aid (DCMS NDPBs),GIA Museums & Galleries,National Museums & Galleries Merseyside,30020150,"2,032,578.00"
Department for Culture Media and Sport,Department for Culture Media and Sport,01/11/2010,Grant-in-Aid (DCMS NDPBs),GIA Museums & Galleries,National Portrait Gallery,30020141,"625,000.00"
Department for Culture Media and Sport,Department for Culture Media and Sport,01/11/2010,Learning & Development,Central Learning & Development,National School of Government,30020192,"3,500.00"
Department for Culture Media and Sport,Department for Culture Media and Sport,01/11/2010,Grant-in-Aid (DCMS NDPBs),GIA Museums & Galleries,Natural History Museum,30020142,"4,006,000.00"
Department for Culture Media and Sport,Department for Culture Media and Sport,01/11/2010,Grant-in-Aid (DCMS NDPBs),GIA Olympic Delivery Authority,Olympic Delivery Authority,30019985,"65,700,000.00"
Department for Culture Media and Sport,Department for Culture Media and Sport,01/11/2010,Learning & Development,Central Learning & Development,Open University,30020193,650
Department for Culture Media and Sport,Department for Culture Media and Sport,01/11/2010,Grant-in-Aid (DCMS NDPBs),GIA Libraries bodies,Public Lending Right,30020046,"47,300.00"
Department for Culture Media and Sport,Department for Culture Media and Sport,01/11/2010,Grant-in-Aid (DCMS NDPBs),GIA Architecture+Heritage,Royal Household,30020099,"1,442,250.00"
Department for Culture Media and Sport,Department for Culture Media and Sport,01/11/2010,Grant-in-Aid (DCMS NDPBs),GIA Museums & Galleries,Sir John Soane's Museum,30020094,"96,433.00"
Department for Culture Media and Sport,Department for Culture Media and Sport,01/11/2010,Learning & Development,Central Learning & Development,Teleios Consulting South East Ltd,30020188,527.1
Department for Culture Media and Sport,Department for Culture Media and Sport,01/11/2010,Grant-in-Aid (DCMS NDPBs),GIA Museums & Galleries,The Royal Armouries,30020095,"815,000.00"
Department for Culture Media and Sport,Department for Culture Media and Sport,01/11/2010,Statutory Instrument Costs,DG Partnerships + Programmes,The Stationery Office,30020199,"3,110.00"
Department for Culture Media and Sport,Department for Culture Media and Sport,01/11/2010,Current Grants Private Sector,GIA Museums & Galleries,Tyne and Wear Museums,30020045,"119,600.00"
Department for Culture Media and Sport,Department for Culture Media and Sport,01/11/2010,Grant-in-Aid (DCMS NDPBs),GIA Sports bodies,United Kingdom Sports Council,30020147,"2,625,945.00"
Department for Culture Media and Sport,Department for Culture Media and Sport,01/11/2010,Grant-in-Aid (DCMS NDPBs),GIA Museums & Galleries,Victoria & Albert Museum,30020148,"3,828,593.00"
Department for Culture Media and Sport,Department for Culture Media and Sport,01/11/2010,Grant-in-Aid (DCMS NDPBs),GIA Museums & Galleries,Wallace Collection,30020149,"363,583.00"
Department for Culture Media and Sport,Department for Culture Media and Sport,01/11/2010,Grant-in-Aid (DCMS NDPBs),GIA S4C Welsh Fourth Channel,Welsh Fourth Channel Authority,30020050,"8,915,000.00"
Department for Culture Media and Sport,Department for Culture Media and Sport,02/11/2010,IT Maintenance,Information Services,Atos Origin IT Services UK Ltd,30020187,"191,686.96"
Department for Culture Media and Sport,Department for Culture Media and Sport,02/11/2010,Temp staff Interim managers,Human Resources Team,Morgan Law Partners LLP,30020135,"2,643.75"
Department for Culture Media and Sport,Department for Culture Media and Sport,02/11/2010,Grant-in-Aid (DCMS NDPBs),GIA Mus Libs Archives x-sector,Museums Libraries and Archives Council,30020202,"200,000.00"
Department for Culture Media and Sport,Department for Culture Media and Sport,02/11/2010,Grant-in-Aid (DCMS NDPBs),GIA Mus Libs Archives x-sector,Museums Libraries and Archives Council,30020204,"1,250,000.00"
Department for Culture Media and Sport,Department for Culture Media and Sport,02/11/2010,IT Capital Additions,Human Resources Team,Skillsearch Ltd,30020173,"2,350.00"
Department for Culture Media and Sport,Department for Culture Media and Sport,02/11/2010,Grant-in-Aid (DCMS NDPBs),GIA Tourism bodies,Visit Britain,30020205,"4,489,000.00"
Department for Culture Media and Sport,Department for Culture Media and Sport,02/11/2010,Healthy Workplace,Human Resources Team,Workplace Options,30020182,929.48
Department for Culture Media and Sport,Department for Culture Media and Sport,03/11/2010,Grant to BBC:Home Broadcasting,Home Broadcasting:Grant to BBC,British Broadcasting Corporation,30020031,"32,000,000.00"
Department for Culture Media and Sport,Department for Culture Media and Sport,03/11/2010,Grant-in-Aid (DCMS NDPBs),GIA Museums & Galleries,Tate Gallery,30020096,"5,961,874.00"
Department for Culture Media and Sport,Department for Culture Media and Sport,03/11/2010,Grant-in-Aid (DCMS NDPBs),GIA Mus Libs Archives x-sector,Museums Libraries and Archives Council,30020203,"11,500,000.00"
Department for Culture Media and Sport,Department for Culture Media and Sport,04/11/2010,Conservation - Oil Paintings,Govt Art Collection programme,Andrea Gall,30020207,"2,098.00"
Department for Culture Media and Sport,Department for Culture Media and Sport,04/11/2010,Temp staff filling vacancy,Government Olympic Executive,Brook Street ( UK ) Ltd,30020226,798.67
Department for Culture Media and Sport,Department for Culture Media and Sport,04/11/2010,Temp staff filling vacancy,Government Olympic Executive,Brook Street ( UK ) Ltd,30020227,855.85
Department for Culture Media and Sport,Department for Culture Media and Sport,04/11/2010,Temp staff filling vacancy,Government Olympic Executive,Brook Street ( UK ) Ltd,30020235,551.13
Department for Culture Media and Sport,Department for Culture Media and Sport,04/11/2010,Flag Flying,State Ceremonials Prog Costs,Brophy Grounds Maintenance Ltd,30020214,"3,279.63"
Department for Culture Media and Sport,Department for Culture Media and Sport,04/11/2010,Flag Flying,State Ceremonials Prog Costs,Brophy Grounds Maintenance Ltd,30020215,"22,467.80"
Department for Culture Media and Sport,Department for Culture Media and Sport,04/11/2010,T&S Overseas (Officials only),Procurement,Capita Business Travel Ltd,30020246,"4,552.06"
Department for Culture Media and Sport,Department for Culture Media and Sport,04/11/2010,Office Accom Fuel & Utilities,Estates & Property Services,EDF Customer Field Services,30020223,507.61
Department for Culture Media and Sport,Department for Culture Media and Sport,04/11/2010,Art Transport - UK,Govt Art Collection programme,Fine Art Services Ltd,30020240,489
Department for Culture Media and Sport,Department for Culture Media and Sport,04/11/2010,T&S UK (Officials only),Procurement,Hogg Robinson ( Travel ) Limited,30020229,"1,870.60"
Department for Culture Media and Sport,Department for Culture Media and Sport,04/11/2010,Ceremonials - Other Costs,State Ceremonials Prog Costs,House of Flags,30020216,"2,530.00"
Department for Culture Media and Sport,Department for Culture Media and Sport,04/11/2010,Flag Flying,State Ceremonials Prog Costs,House of Flags,30020218,"4,551.00"
Department for Culture Media and Sport,Department for Culture Media and Sport,04/11/2010,Conservation - Works on Paper,Govt Art Collection programme,Keith Holmes Hampton Court,30020243,"2,869.00"
Department for Culture Media and Sport,Department for Culture Media and Sport,04/11/2010,Ceremonials - Other Costs,State Ceremonials Prog Costs,Lavender Green Ltd,30020219,"3,140.00"
Department for Culture Media and Sport,Department for Culture Media and Sport,04/11/2010,Management of Grant Programmes,Memorials VAT Grant Scheme,Liberata UK Ltd,30020241,"5,193.22"
Department for Culture Media and Sport,Department for Culture Media and Sport,04/11/2010,Management of Grant Programmes,Listed Places of Worship,Liberata UK Ltd,30020242,"16,166.05"
Department for Culture Media and Sport,Department for Culture Media and Sport,04/11/2010,Current Grants Private Sector,Sporting and Cultural Champs,Media Trust,30020092,"85,287.00"
Department for Culture Media and Sport,Department for Culture Media and Sport,04/11/2010,Health & Safety,Estates & Property Services,Passingham Associates,30020230,760.4
Department for Culture Media and Sport,Department for Culture Media and Sport,04/11/2010,Temp staff Interim managers,Government Olympic Executive,Russam GMS LTD,30020231,"15,201.57"
Department for Culture Media and Sport,Department for Culture Media and Sport,04/11/2010,Temp staff Interim managers,Government Olympic Executive,Russam GMS LTD,30020232,"8,107.50"
Department for Culture Media and Sport,Department for Culture Media and Sport,04/11/2010,Temp staff Interim managers,Government Olympic Executive,Russam GMS LTD,30020233,"10,134.38"
Department for Culture Media and Sport,Department for Culture Media and Sport,04/11/2010,Temp staff Interim managers,Government Olympic Executive,Russam GMS LTD,30020234,"10,134.38"
Department for Culture Media and Sport,Department for Culture Media and Sport,05/11/2010,Other Telephone Charges,Information Services,Buying Solutions,30020208,"50,968.00"
Department for Culture Media and Sport,Department for Culture Media and Sport,05/11/2010,Local Photocopiers,Estates & Property Services,Canon (UK) Ltd,30020253,"1,998.19"
Department for Culture Media and Sport,Department for Culture Media and Sport,05/11/2010,International Subscriptions,European AV Observatory,European Audiovisual Observatory,30020256,"152,022.53"
Department for Culture Media and Sport,Department for Culture Media and Sport,05/11/2010,Digital Preservation Fund,Government Olympic Executive,Greater London Authority,30020250,"82,400.00"
Department for Culture Media and Sport,Department for Culture Media and Sport,05/11/2010,New Picture Frames,Govt Art Collection programme,John Jones Art Centre Ltd,30020245,"6,770.09"
Department for Culture Media and Sport,Department for Culture Media and Sport,05/11/2010,Resource Grant to OGD,OFCOM,Ofcom,30020251,"524,103.00"
Department for Culture Media and Sport,Department for Culture Media and Sport,05/11/2010,Management Consultants,Information Services,Quo Imus Ltd,30020249,"1,051.63"
Department for Culture Media and Sport,Department for Culture Media and Sport,05/11/2010,Temp staff filling vacancy,Evidence&Analysis admin projs,TFPL Ltd,30020228,571.44
Department for Culture Media and Sport,Department for Culture Media and Sport,05/11/2010,Temp staff filling vacancy,Evidence&Analysis admin projs,TFPL Ltd,30020252,637.88
Department for Culture Media and Sport,Department for Culture Media and Sport,08/11/2010,Grant to BBC:Home Broadcasting,Home Broadcasting:Grant to BBC,British Broadcasting Corporation,30020032,"8,000,000.00"
Department for Culture Media and Sport,Department for Culture Media and Sport,08/11/2010,Finance & Accounting Services,Finance & Planning,Liberata UK Ltd,30020239,"21,429.50"
Department for Culture Media and Sport,Department for Culture Media and Sport,08/11/2010,Temp staff Interim managers,Human Resources Team,Morgan Law Partners LLP,30020255,"2,643.75"
Department for Culture Media and Sport,Department for Culture Media and Sport,09/11/2010,Current Grants Private Sector,Own Art and Take It Away,ArtCo Trading Ltd,30020277,"252,666.00"
Department for Culture Media and Sport,Department for Culture Media and Sport,09/11/2010,Government Procurement Card,Procurement,Barclays Bank plc,30020259,"13,026.85"
Department for Culture Media and Sport,Department for Culture Media and Sport,09/11/2010,Temp staff filling vacancy,Public Engagmt + Recognition,Brook Street ( UK ) Ltd,30020273,557.68
Department for Culture Media and Sport,Department for Culture Media and Sport,09/11/2010,Learning & Development,Central Learning & Development,Click Routes,30020270,750
Department for Culture Media and Sport,Department for Culture Media and Sport,09/11/2010,Learning & Development,Central Learning & Development,Eliesha Training Ltd,30020268,745
Department for Culture Media and Sport,Department for Culture Media and Sport,09/11/2010,Learning & Development,Central Learning & Development,Eliesha Training Ltd,30020269,822.5
Department for Culture Media and Sport,Department for Culture Media and Sport,09/11/2010,Learning & Development,Central Learning & Development,Eliesha Training Ltd,30020279,745
Department for Culture Media and Sport,Department for Culture Media and Sport,09/11/2010,Learning & Development,Central Learning & Development,Faraday Partnership Ltd,30020258,"1,000.00"
Department for Culture Media and Sport,Department for Culture Media and Sport,09/11/2010,Art Transport - UK,Govt Art Collection programme,Fine Art Services Ltd,30020281,430
Department for Culture Media and Sport,Department for Culture Media and Sport,09/11/2010,Resource Grant to OGD,Other Sports Support(excl ISB),Home Office,30020257,"366,666.00"
Department for Culture Media and Sport,Department for Culture Media and Sport,09/11/2010,Reimbursement of Agreed Costs,Regional progs + LA engagement,I&DEA Improvement Development Agency,30020275,"55,936.00"
Department for Culture Media and Sport,Department for Culture Media and Sport,09/11/2010,Learning & Development,Central Learning & Development,National School of Government,30020271,"1,220.00"
Department for Culture Media and Sport,Department for Culture Media and Sport,09/11/2010,Learning & Development,Central Learning & Development,National School of Government,30020272,"2,374.90"
Department for Culture Media and Sport,Department for Culture Media and Sport,09/11/2010,Healthy Workplace,Human Resources Team,Posturite (UK) Ltd,30020225,765.96
Department for Culture Media and Sport,Department for Culture Media and Sport,09/11/2010,Learning & Development,Central Learning & Development,Sheffield Hallum University,30020267,"4,240.00"
Department for Culture Media and Sport,Department for Culture Media and Sport,09/11/2010,Current Grants Private Sector,Listed Places of Worship,Summary value paid by Liberata UK Ltd for LPW grants,30020284,"1,160,398.81"
Department for Culture Media and Sport,Department for Culture Media and Sport,10/11/2010,IT Capital Additions,Information Services,Atos Origin IT Services UK Ltd,30020291,"13,824.58"
Department for Culture Media and Sport,Department for Culture Media and Sport,10/11/2010,IT Maintenance,Information Services,Atos Origin IT Services UK Ltd,30020292,868.56
Department for Culture Media and Sport,Department for Culture Media and Sport,10/11/2010,IT Support,Information Services,Atos Origin IT Services UK Ltd,30020293,"527,087.62"
Department for Culture Media and Sport,Department for Culture Media and Sport,10/11/2010,IT Capital Additions,Information Services,Atos Origin IT Services UK Ltd,30020297,"1,889.40"
Department for Culture Media and Sport,Department for Culture Media and Sport,10/11/2010,IT Capital Additions,Information Services,Atos Origin IT Services UK Ltd,30020298,"7,557.60"
Department for Culture Media and Sport,Department for Culture Media and Sport,10/11/2010,Temp staff filling vacancy,Government Olympic Executive,Brook Street ( UK ) Ltd,30020289,616.52
Department for Culture Media and Sport,Department for Culture Media and Sport,10/11/2010,Temp staff filling vacancy,Government Olympic Executive,Brook Street ( UK ) Ltd,30020290,765.98
Department for Culture Media and Sport,Department for Culture Media and Sport,10/11/2010,Temp staff filling vacancy,Government Olympic Executive,Brook Street ( UK ) Ltd,30020294,861.26
Department for Culture Media and Sport,Department for Culture Media and Sport,10/11/2010,Temp staff filling vacancy,Human Resources Team,Brook Street ( UK ) Ltd,30020295,538.9
Department for Culture Media and Sport,Department for Culture Media and Sport,10/11/2010,Temp staff filling vacancy,Human Resources Team,Brook Street ( UK ) Ltd,30020296,615.15
Department for Culture Media and Sport,Department for Culture Media and Sport,10/11/2010,Temp staff filling vacancy,Human Resources Team,Brook Street ( UK ) Ltd,30020299,825.88
Department for Culture Media and Sport,Department for Culture Media and Sport,10/11/2010,Temp staff Interim managers,Information Services,Contract Connections,30020266,"8,812.50"
Department for Culture Media and Sport,Department for Culture Media and Sport,10/11/2010,Art Transport - Overseas,Govt Art Collection programme,Gander & White Shipping Ltd,30020276,"5,472.64"
Department for Culture Media and Sport,Department for Culture Media and Sport,10/11/2010,Temp staff filling vacancy,Government Olympic Executive,Hays Office Support,30020286,643.35
Department for Culture Media and Sport,Department for Culture Media and Sport,10/11/2010,Payroll (Logica),Human Resources Team,Logica CMG Enterprise Services,30020160,"2,939.03"
Department for Culture Media and Sport,Department for Culture Media and Sport,10/11/2010,IT Capital Additions,Human Resources Team,Logica CMG Enterprise Services,30020254,"1,365.35"
Department for Culture Media and Sport,Department for Culture Media and Sport,10/11/2010,Art Transport - Overseas,Govt Art Collection programme,Martinspeed Ltd,30020288,"2,752.00"
Department for Culture Media and Sport,Department for Culture Media and Sport,10/11/2010,Art Transport - Overseas,Govt Art Collection programme,Martinspeed Ltd,30020303,"2,010.00"
Department for Culture Media and Sport,Department for Culture Media and Sport,10/11/2010,Temp staff Interim managers,Human Resources Team,Morgan Law Partners LLP,30020261,"2,643.75"
Department for Culture Media and Sport,Department for Culture Media and Sport,11/11/2010,Temp staff Interim managers,Government Olympic Executive,Alpine Consortium,30020317,"18,923.72"
Department for Culture Media and Sport,Department for Culture Media and Sport,11/11/2010,Publications & Website,Govt Art Collection programme,Atos Origin IT Services UK Ltd,30020311,967.26
Department for Culture Media and Sport,Department for Culture Media and Sport,11/11/2010,Temp staff filling vacancy,Minister Sport,Brook Street ( UK ) Ltd,30020306,714.6
Department for Culture Media and Sport,Department for Culture Media and Sport,11/11/2010,Temp staff filling vacancy,Minister Sport,Brook Street ( UK ) Ltd,30020307,695.92
Department for Culture Media and Sport,Department for Culture Media and Sport,11/11/2010,Temp staff filling vacancy,Government Olympic Executive,Brook Street ( UK ) Ltd,30020316,705.26
Department for Culture Media and Sport,Department for Culture Media and Sport,11/11/2010,Public Appointments,Public Engagmt + Recognition,COI Communication,30020278,"19,926.06"
Department for Culture Media and Sport,Department for Culture Media and Sport,11/11/2010,Internal Audit Service CLG fee,Director of Finance,Dept for Communities & Local Govt,30020319,"17,833.83"
Department for Culture Media and Sport,Department for Culture Media and Sport,11/11/2010,Publicity,Press Office,Nick Watson,30020309,500
Department for Culture Media and Sport,Department for Culture Media and Sport,11/11/2010,Press Associated Subscriptions,Press Office,The Press Association,30020308,"1,547.92"
Department for Culture Media and Sport,Department for Culture Media and Sport,11/11/2010,Other Library subscriptions,Public Engagmt + Recognition,The Stationery Office,30020304,"6,370.85"
Department for Culture Media and Sport,Department for Culture Media and Sport,11/11/2010,TSOL European Levy,Legal Advisers to DCMS (TSOL),Treasury Solicitors,30020260,"126,187.00"
Department for Culture Media and Sport,Department for Culture Media and Sport,11/11/2010,Current Grants Private Sector,International programme spend,Visiting Arts,30020320,"25,000.00"
Department for Culture Media and Sport,Department for Culture Media and Sport,12/11/2010,Temp staff filling vacancy,Government Olympic Executive,Adecco UK Ltd,30020325,"3,263.50"
Department for Culture Media and Sport,Department for Culture Media and Sport,12/11/2010,Temp staff Interim managers,Government Olympic Executive,Alpine Consortium,30020326,"23,932.94"
Department for Culture Media and Sport,Department for Culture Media and Sport,12/11/2010,Temp staff Interim managers,Government Olympic Executive,Alpine Consortium,30020327,"23,376.35"
Department for Culture Media and Sport,Department for Culture Media and Sport,12/11/2010,Temp staff filling vacancy,Public Engagmt + Recognition,Brook Street ( UK ) Ltd,30020346,539.33
Department for Culture Media and Sport,Department for Culture Media and Sport,12/11/2010,IT Capital Additions,Human Resources Team,Catalytic Consulting & Training,30020315,"15,186.88"
Department for Culture Media and Sport,Department for Culture Media and Sport,12/11/2010,IT Capital Additions,Human Resources Team,Catalytic Consulting & Training,30020318,"14,217.50"
Department for Culture Media and Sport,Department for Culture Media and Sport,12/11/2010,Works Manager Fees,State Ceremonials Prog Costs,E C Harris LLP,30020332,779.1
Department for Culture Media and Sport,Department for Culture Media and Sport,12/11/2010,Works Manager Fees,State Ceremonials Prog Costs,E C Harris LLP,30020333,"11,141.07"
Department for Culture Media and Sport,Department for Culture Media and Sport,12/11/2010,New Picture Frames,Govt Art Collection programme,Fletcher Gallery Services,30020334,"1,780.87"
Department for Culture Media and Sport,Department for Culture Media and Sport,12/11/2010,Learning & Development,Human Resources Team,Institute for Employment Studies,30020300,"17,184.38"
Department for Culture Media and Sport,Department for Culture Media and Sport,12/11/2010,Payroll (Logica),Human Resources Team,Logica CMG Enterprise Services,30020342,"6,853.12"
Department for Culture Media and Sport,Department for Culture Media and Sport,12/11/2010,Learning & Development,Central Learning & Development,National School of Government,30020341,"13,500.00"
Department for Culture Media and Sport,Department for Culture Media and Sport,12/11/2010,Learning & Development,Human Resources Team,Paul Roscoria Associates,30020345,"3,038.00"
Department for Culture Media and Sport,Department for Culture Media and Sport,12/11/2010,Temp staff filling vacancy,Evidence&Analysis admin projs,TFPL Ltd,30020329,637.88
Department for Culture Media and Sport,Department for Culture Media and Sport,12/11/2010,Overtime - Secondees,Minister for Tourism+Heritage,The Royal Parks,30020305,"1,468.76"
Department for Culture Media and Sport,Department for Culture Media and Sport,12/11/2010,Grant-in-Aid (DCMS NDPBs),GIA Sports bodies,United Kingdom Sports Council,30020322,"1,000,000.00"
Department for Culture Media and Sport,Department for Culture Media and Sport,12/11/2010,Other Telephone Charges,Information Services,Verizon UK Ltd,30020312,782.79
Department for Culture Media and Sport,Department for Culture Media and Sport,15/11/2010,Conservation - Picture Frames,Govt Art Collection programme,Alexander G Ley & Son,30020357,"2,300.00"
Department for Culture Media and Sport,Department for Culture Media and Sport,15/11/2010,Publicity Costs - Programme,Childrens Play,Department of Education,30020340,"126,725.00"
Department for Culture Media and Sport,Department for Culture Media and Sport,16/11/2010,Security,Estates & Property Services,Carillion Services Ltd,30020363,"56,367.11"
Department for Culture Media and Sport,Department for Culture Media and Sport,16/11/2010,Healthy Workplace,Human Resources Team,Central YMCA,30020338,954.1
Department for Culture Media and Sport,Department for Culture Media and Sport,16/11/2010,Temp staff Interim managers,Human Resources Team,Morgan Law Partners LLP,30020374,"2,643.75"
Department for Culture Media and Sport,Department for Culture Media and Sport,16/11/2010,NAO Audit Fees-actualNLDF/OLDF,Finance & Planning,National Audit Office,30020355,"26,500.00"
Department for Culture Media and Sport,Department for Culture Media and Sport,16/11/2010,NAO Audit Fees-actualNLDF/OLDF,Finance & Planning,National Audit Office,30020356,"26,500.00"
Department for Culture Media and Sport,Department for Culture Media and Sport,16/11/2010,IT Capital Additions,Human Resources Team,Skillsearch Ltd,30020361,"9,400.00"
Department for Culture Media and Sport,Department for Culture Media and Sport,17/11/2010,Temp staff filling vacancy,Government Olympic Executive,Brook Street ( UK ) Ltd,30020393,709.94
Department for Culture Media and Sport,Department for Culture Media and Sport,17/11/2010,Staff Opinion Survey,Human Resources Team,Cabinet Office,30020358,"9,497.85"
Department for Culture Media and Sport,Department for Culture Media and Sport,17/11/2010,Office Accom Fuel & Utilities,Estates & Property Services,Carbon Trust Standard Company Ltd,30020379,"2,350.00"
Department for Culture Media and Sport,Department for Culture Media and Sport,17/11/2010,Office Accom Fuel & Utilities,Estates & Property Services,EDF Energy Ltd,30020367,"14,123.44"
Department for Culture Media and Sport,Department for Culture Media and Sport,17/11/2010,Office Accom Fuel & Utilities,Estates & Property Services,EDF Trading Ltd,30020364,"1,328.90"
Department for Culture Media and Sport,Department for Culture Media and Sport,17/11/2010,Learning & Development,Central Learning & Development,Eliesha Training Ltd,30020391,"7,123.20"
Department for Culture Media and Sport,Department for Culture Media and Sport,17/11/2010,Temp staff filling vacancy,Government Olympic Executive,Hays Office Support,30020378,854.08
Department for Culture Media and Sport,Department for Culture Media and Sport,17/11/2010,T&S UK (Officials only),Procurement,Hogg Robinson ( Travel ) Limited,30020385,"1,300.10"
Department for Culture Media and Sport,Department for Culture Media and Sport,17/11/2010,Other Capital Grants,Memorials VAT Grant Scheme,Summary value paid by Liberata UK Ltd for MGS grants,30020381,"7,888.43"
Department for Culture Media and Sport,Department for Culture Media and Sport,18/11/2010,Temp staff filling vacancy,Human Resources Team,Brook Street ( UK ) Ltd,30020389,763.23
Department for Culture Media and Sport,Department for Culture Media and Sport,18/11/2010,Temp staff filling vacancy,Human Resources Team,Brook Street ( UK ) Ltd,30020390,538.9
Department for Culture Media and Sport,Department for Culture Media and Sport,18/11/2010,Temp staff filling vacancy,Government Olympic Executive,Brook Street ( UK ) Ltd,30020404,872.1
Department for Culture Media and Sport,Department for Culture Media and Sport,18/11/2010,Public Appointments,Public Engagmt + Recognition,COI Communication,30020388,"9,325.58"
Department for Culture Media and Sport,Department for Culture Media and Sport,18/11/2010,Healthy Workplace,Human Resources Team,Fleet Street Clinic,30020395,"1,387.91"
Department for Culture Media and Sport,Department for Culture Media and Sport,18/11/2010,Copyright Fees,Govt Art Collection programme,Getty Images International,30020394,586.85
Department for Culture Media and Sport,Department for Culture Media and Sport,18/11/2010,Temp staff filling vacancy,Government Olympic Executive,Hays Office Support,30020403,793.08
Department for Culture Media and Sport,Department for Culture Media and Sport,18/11/2010,Other Consultancy,Public Engagmt + Recognition,John Churchill,30020400,851.9
Department for Culture Media and Sport,Department for Culture Media and Sport,18/11/2010,Temp staff Interim managers,Government Olympic Executive,LA International,30020405,"18,432.93"
Department for Culture Media and Sport,Department for Culture Media and Sport,18/11/2010,Other Consultancy,Board Secretariat,National School of Government,30020401,"2,790.51"
Department for Culture Media and Sport,Department for Culture Media and Sport,18/11/2010,Art Transport - Overseas,Govt Art Collection programme,Oxford Exhibition Services,30020398,"1,753.50"
Department for Culture Media and Sport,Department for Culture Media and Sport,18/11/2010,Temp staff Interim managers,Government Olympic Executive,Russam GMS LTD,30020406,"10,134.38"
Department for Culture Media and Sport,Department for Culture Media and Sport,18/11/2010,Temp staff Interim managers,Government Olympic Executive,Russam GMS LTD,30020407,"9,374.30"
Department for Culture Media and Sport,Department for Culture Media and Sport,18/11/2010,Temp staff Interim managers,Government Olympic Executive,Russam GMS LTD,30020408,"5,067.19"
Department for Culture Media and Sport,Department for Culture Media and Sport,19/11/2010,Office Accom Fuel & Utilities,Estates & Property Services,British Gas Business,30020421,"2,298.02"
Department for Culture Media and Sport,Department for Culture Media and Sport,19/11/2010,Temp staff filling vacancy,Minister Sport,Brook Street ( UK ) Ltd,30020432,719.28
Department for Culture Media and Sport,Department for Culture Media and Sport,19/11/2010,Accommodation Management Fees,Estates & Property Services,Cochrane McGregor & Associates Ltd,30020422,"2,000.00"
Department for Culture Media and Sport,Department for Culture Media and Sport,19/11/2010,Cycle to Work balances,Human Resources Team,Cyclescheme Ltd,30020433,668.65
Department for Culture Media and Sport,Department for Culture Media and Sport,19/11/2010,Waste Management,Estates & Property Services,Ecovert FM Ltd,30020423,"8,951.41"
Department for Culture Media and Sport,Department for Culture Media and Sport,19/11/2010,Mailroom Services,Estates & Property Services,Ecovert FM Ltd,30020424,"13,140.25"
Department for Culture Media and Sport,Department for Culture Media and Sport,19/11/2010,Research,EAU Policy Research + Eval,Grant Thornton UK LLP,30020362,"30,000.00"
Department for Culture Media and Sport,Department for Culture Media and Sport,19/11/2010,Delegated Stationery Costs,Government Olympic Executive,Honav UK Ltd,30020429,"1,237.50"
Department for Culture Media and Sport,Department for Culture Media and Sport,19/11/2010,Research,CASE Joint Research Projects,Jane Dawson Limited,30020197,"3,200.00"
Department for Culture Media and Sport,Department for Culture Media and Sport,19/11/2010,Payroll (Logica),Human Resources Team,Logica CMG Enterprise Services,30020426,"2,844.04"
Department for Culture Media and Sport,Department for Culture Media and Sport,19/11/2010,Capital Grant Private Sector,Grant support to NFTS,National Film & Television School,30020434,"261,833.00"
Department for Culture Media and Sport,Department for Culture Media and Sport,19/11/2010,Research,EAU Policy Research + Eval,Office for National Statistics(Citi Tfr),30020280,"48,273.00"
Department for Culture Media and Sport,Department for Culture Media and Sport,19/11/2010,Publicity,Communications,Precise Media Monitoring Ltd,30020418,142.6
Department for Culture Media and Sport,Department for Culture Media and Sport,19/11/2010,National Cutting Service,Press Office,Precise Media Monitoring Ltd,30020418,"4,479.13"
Department for Culture Media and Sport,Department for Culture Media and Sport,19/11/2010,Temp staff Interim managers,Government Olympic Executive,Russam GMS LTD,30020419,"5,067.19"
Department for Culture Media and Sport,Department for Culture Media and Sport,19/11/2010,Research,EAU Taking Part Survey,TNS UK LTD,30020373,"114,433.25"
Department for Culture Media and Sport,Department for Culture Media and Sport,19/11/2010,TSOL Advice Billed Hours,Legal Advisers to DCMS (TSOL),Treasury Solicitors,30020372,"114,409.97"
Department for Culture Media and Sport,Department for Culture Media and Sport,22/11/2010,IT Maintenance,Information Services,Atos Origin IT Services UK Ltd,30020435,"21,590.16"
Department for Culture Media and Sport,Department for Culture Media and Sport,22/11/2010,Other Telephone Charges,Information Services,Daisy Telecoms,30020396,956.16
Department for Culture Media and Sport,Department for Culture Media and Sport,22/11/2010,Other Telephone Charges,Information Services,Daisy Telecoms,30020430,920.98
Department for Culture Media and Sport,Department for Culture Media and Sport,22/11/2010,Conservation - Oil Paintings,Govt Art Collection programme,J Dimond T/A James Dimond Conservation,30020440,"2,736.00"
Department for Culture Media and Sport,Department for Culture Media and Sport,22/11/2010,Temp staff Interim managers,Human Resources Team,Morgan Law Partners LLP,30020438,"2,115.00"
Department for Culture Media and Sport,Department for Culture Media and Sport,23/11/2010,Art Transport - UK,Govt Art Collection programme,Fine Art Services Ltd,30020445,480
Department for Culture Media and Sport,Department for Culture Media and Sport,23/11/2010,Government Car Service,Minister Sport,GCDA,30020437,510
Department for Culture Media and Sport,Department for Culture Media and Sport,23/11/2010,Healthy Workplace,Human Resources Team,Health Management Ltd,30020443,"2,678.67"
Department for Culture Media and Sport,Department for Culture Media and Sport,23/11/2010,Art Transport - Overseas,Govt Art Collection programme,Martinspeed Ltd,30020444,"2,164.00"
Department for Culture Media and Sport,Department for Culture Media and Sport,24/11/2010,Temp staff filling vacancy,Public Engagmt + Recognition,Brook Street ( UK ) Ltd,30020454,543
Department for Culture Media and Sport,Department for Culture Media and Sport,24/11/2010,Temp staff filling vacancy,Human Resources Team,Brook Street ( UK ) Ltd,30020460,820.2
Department for Culture Media and Sport,Department for Culture Media and Sport,24/11/2010,Temp staff filling vacancy,Human Resources Team,Brook Street ( UK ) Ltd,30020461,538.9
Department for Culture Media and Sport,Department for Culture Media and Sport,24/11/2010,Conservation - Oil Paintings,Govt Art Collection programme,Claire Gaskell,30020459,"2,730.00"
Department for Culture Media and Sport,Department for Culture Media and Sport,24/11/2010,Research,Digital Switchover Programme,eaga plc Switchover Help Scheme,30020442,"138,748.55"
Department for Culture Media and Sport,Department for Culture Media and Sport,24/11/2010,Art Transport - Overseas,Govt Art Collection programme,Gander & White Shipping Ltd,30020463,"6,085.75"
Department for Culture Media and Sport,Department for Culture Media and Sport,24/11/2010,Management Consultants,Human Resources Team,Hay Group,30020466,"2,000.00"
Department for Culture Media and Sport,Department for Culture Media and Sport,24/11/2010,Temp staff filling vacancy,Government Olympic Executive,Hays Office Support,30020456,798.62
Department for Culture Media and Sport,Department for Culture Media and Sport,24/11/2010,Temp staff Interim managers,Government Olympic Executive,LA International,30020455,"18,477.82"
Department for Culture Media and Sport,Department for Culture Media and Sport,24/11/2010,Other Consultancy,Government Olympic Executive,Morgan Hunt Public Sector Ltd,30020464,720
Department for Culture Media and Sport,Department for Culture Media and Sport,24/11/2010,Art Transport - UK,Govt Art Collection programme,Oxford Exhibition Services,30020465,675
Department for Culture Media and Sport,Department for Culture Media and Sport,24/11/2010,Spoliation Committee Costs,Dir Culture team + projects,Palmer N E Professor,30020462,647.19
Department for Culture Media and Sport,Department for Culture Media and Sport,24/11/2010,Current Grants Private Sector,Listed Places of Worship,Summary value paid by Liberata UK Ltd for LPW grants,30020449,"980,563.66"
Department for Culture Media and Sport,Department for Culture Media and Sport,24/11/2010,Other Consultancy,Dir Culture team + projects,Watts Group PLC,30020469,"1,375.73"
Department for Culture Media and Sport,Department for Culture Media and Sport,25/11/2010,Contract Catering Provider,Estates & Property Services,Baxterstorey,30020501,"3,883.78"
Department for Culture Media and Sport,Department for Culture Media and Sport,25/11/2010,Temp staff filling vacancy,Government Olympic Executive,Brook Street ( UK ) Ltd,30020498,828.76
Department for Culture Media and Sport,Department for Culture Media and Sport,25/11/2010,Building Maintenance,Estates & Property Services,Carillion Services Ltd,30020479,"1,762.42"
Department for Culture Media and Sport,Department for Culture Media and Sport,25/11/2010,Art Transport - UK,Govt Art Collection programme,Jayhawk Ltd,30020481,455
Department for Culture Media and Sport,Department for Culture Media and Sport,25/11/2010,Contract Catering Provider,Estates & Property Services,Siemens Financial Services Ltd,30020497,747.25
Department for Culture Media and Sport,Department for Culture Media and Sport,25/11/2010,Learning & Development,Central Learning & Development,Teleios Consulting South East Ltd,30020500,"1,055.20"
Department for Culture Media and Sport,Department for Culture Media and Sport,26/11/2010,National Non-Domestic Rates,Estates & Property Services,London Borough of Camden,30020383,"24,070.00"
Department for Culture Media and Sport,Department for Culture Media and Sport,26/11/2010,National Non-Domestic Rates,Estates & Property Services,Westminster City Council,30020384,"144,761.00"
Department for Culture Media and Sport,Department for Culture Media and Sport,29/11/2010,IT Maintenance,Information Services,Atos Origin IT Services UK Ltd,30020499,"136,784.34"
Department for Culture Media and Sport,Department for Culture Media and Sport,29/11/2010,Temp staff filling vacancy,Government Olympic Executive,Brook Street ( UK ) Ltd,30020521,681.91
Department for Culture Media and Sport,Department for Culture Media and Sport,29/11/2010,Temp staff filling vacancy,Government Olympic Executive,Brook Street ( UK ) Ltd,30020533,695.92
Department for Culture Media and Sport,Department for Culture Media and Sport,29/11/2010,Learning & Development,Central Learning & Development,City of Westminster College,30020436,946
Department for Culture Media and Sport,Department for Culture Media and Sport,29/11/2010,Ceremonial Event Costs,State Ceremonials Prog Costs,Compass Services (UK) Ltd,30020525,503.91
Department for Culture Media and Sport,Department for Culture Media and Sport,29/11/2010,Art Transport - UK,Govt Art Collection programme,Constantine,30020520,565
Department for Culture Media and Sport,Department for Culture Media and Sport,29/11/2010,Art Transport - UK,Govt Art Collection programme,DS Delivery Services,30020528,500
Department for Culture Media and Sport,Department for Culture Media and Sport,29/11/2010,Current Grants Private Sector,International Inspiration,II Foundation,30020531,"800,000.00"
Department for Culture Media and Sport,Department for Culture Media and Sport,29/11/2010,Conservation - Oil Paintings,Govt Art Collection programme,Mrs Carol Willoughby,30020526,456
Department for Culture Media and Sport,Department for Culture Media and Sport,29/11/2010,Conservation - Oil Paintings,Govt Art Collection programme,Mrs Carol Willoughby,30020527,"2,050.00"
Department for Culture Media and Sport,Department for Culture Media and Sport,29/11/2010,Delegated Stationery Costs,Information Services,Premier Plastic Cards,30020515,517
Department for Culture Media and Sport,Department for Culture Media and Sport,29/11/2010,Other Telephone Charges,Information Services,Vodafone (Corporate),30020514,821.56
Department for Culture Media and Sport,Department for Culture Media and Sport,30/11/2010,Temp staff filling vacancy,Public Engagmt + Recognition,Brook Street ( UK ) Ltd,30020537,546.67
Department for Culture Media and Sport,Department for Culture Media and Sport,30/11/2010,Other Consultancy,Government Olympic Executive,Morgan Hunt Public Sector Ltd,30020534,"1,440.00"
Department for Culture Media and Sport,Department for Culture Media and Sport,30/11/2010,Other Consultancy,Government Olympic Executive,Morgan Hunt Public Sector Ltd,30020535,540
Department for Culture Media and Sport,Department for Culture Media and Sport,30/11/2010,Other Consultancy,Government Olympic Executive,Morgan Hunt Public Sector Ltd,30020536,630
Department for Culture Media and Sport,Department for Culture Media and Sport,30/11/2010,IT Capital Additions,Human Resources Team,Skillsearch Ltd,30020478,"3,525.00"
